bitfinex/quotes_BTCUSD_20250512
["timestamp","ask_amount","ask_price","bid_price","bid_amount"]
[1747035087663,0.01350854,105520.0,105510.0,0.55798772]
[1747035087876,0.00403248,105520.0,105510.0,0.54851058]
[1747035088111,0.00403248,105520.0,105510.0,0.55798772]
[1747035088566,0.00403248,105520.0,105510.0,0.54851058]
[1747035088567,0.03246129,105520.0,105510.0,0.54851058]
[1747035088813,0.02298487,105520.0,105510.0,0.53903317]
[1747035089023,0.02298487,105520.0,105510.0,0.56746522]
[1747035089233,0.03246111,105520.0,105510.0,0.55798808]
[1747035089446,0.23147604,105520.0,105510.0,0.53903317]
[1747035089655,0.03246165,105520.0,105510.0,0.35895509]
[1747035089865,0.30837759,105520.0,105510.0,0.34]
[1747035090090,0.20850968,105510.0,105500.0,0.55800901]
[1747035090304,0.22201689,105510.0,105500.0,0.35895725]
[1747035090511,0.2314943,105510.0,105500.0,0.55800901]
[1747035090717,0.2314943,105510.0,105500.0,0.56748723]
[1747035090936,0.03246149,105510.0,105500.0,0.56748723]
[1747035091145,0.02298408,105510.0,105500.0,0.5580091]
[1747035091354,0.03246149,105510.0,105500.0,0.57696554]
[1747035091559,0.23249457,105510.0,105500.0,0.56748732]
[1747035091770,0.02398408,105510.0,105500.0,0.57696545]
[1747035092002,0.0334614,105510.0,105500.0,0.57696545]
[1747035092215,0.00947795,105500.0,105490.0,0.18959143]
[1747035092452,0.01895779,105490.0,105480.0,0.86994851]
[1747035092668,0.19907055,105490.0,105480.0,0.41403911]
[1747035092879,0.21316216,105490.0,105480.0,0.42351958]
[1747035093094,0.21316216,105490.0,105480.0,0.41403911]
[1747035093095,0.20368304,105490.0,105480.0,0.41403911]
[1747035093313,0.29953734,105490.0,105480.0,0.41403911]
[1747035093527,0.29753734,105490.0,105480.0,0.41403911]
[1747035093780,0.30501646,105490.0,105480.0,0.62260909]
[1747035093990,0.30501646,105490.0,105480.0,0.62460918]
[1747035094209,0.29553734,105490.0,105480.0,0.41603911]
[1747035094435,0.32913734,105490.0,105480.0,0.00013911]
[1747035094665,0.69298659,105490.0,105480.0,0.00013911]
[1747035094870,0.32913734,105490.0,105480.0,0.00013911]
[1747035095137,0.68698659,105490.0,105480.0,0.00013911]
[1747035096478,0.68898659,105490.0,105480.0,0.00013911]
[1747035096709,0.69198659,105490.0,105480.0,0.00013911]
[1747035096949,0.32813734,105490.0,105480.0,0.00013911]
[1747035097386,0.73745734,105490.0,105480.0,0.00013911]
[1747035097844,1.10130659,105490.0,105480.0,0.00013911]
[1747035098907,1.10130659,105490.0,105440.0,0.86976102]
[1747035098908,0.20862903,105450.0,105440.0,0.6802]
[1747035099110,0.70103258,105450.0,105440.0,0.41403906]
[1747035099315,0.34178276,105450.0,105440.0,0.00013906]
[1747035099973,0.70563201,105450.0,105440.0,0.00013906]
[1747035100217,0.70863201,105450.0,105440.0,0.00013906]
[1747035100419,0.34778276,105450.0,105440.0,0.00013906]
[1747035100835,0.33148276,105450.0,105440.0,0.00013906]
[1747035101051,0.34778276,105450.0,105440.0,0.00013906]
[1747035101262,0.79049784,105450.0,105440.0,0.00013906]
[1747035101480,0.73397334,105450.0,105440.0,0.00013906]
[1747035101893,0.34778276,105450.0,105440.0,0.00013906]
[1747035102323,0.71163201,105450.0,105440.0,0.00013906]
[1747035102524,0.34778276,105450.0,105440.0,0.00013906]
[1747035103161,0.71163201,105450.0,105440.0,0.00013906]
[1747035103796,0.34318333,105450.0,105440.0,0.00013906]
[1747035104036,0.70703258,105450.0,105440.0,0.00013906]
[1747035104445,0.34318333,105450.0,105440.0,0.00013906]
[1747035104654,0.70703258,105450.0,105440.0,0.00013906]
[1747035104868,0.34318333,105450.0,105440.0,0.00013906]
[1747035108093,0.34318333,105450.0,105440.0,0.34013906]
[1747035108532,0.15351945,105450.0,105440.0,0.53930445]
[1747035108764,0.12081927,105450.0,105440.0,0.56775555]
[1747035108993,0.53033927,105450.0,105440.0,0.56775555]
[1747035109209,0.54512648,105450.0,105440.0,0.56775555]
[1747035109430,0.51667871,105450.0,105440.0,0.56775555]
[1747035110106,0.52616124,105450.0,105440.0,0.56775555]
[1747035110524,0.52616106,105450.0,105440.0,0.56775555]
[1747035110729,0.53564359,105450.0,105440.0,0.56775555]
[1747035110939,0.53564368,105450.0,105440.0,0.56775555]
[1747035111159,0.73479072,105450.0,105440.0,0.34013906]
[1747035111408,0.72879072,105450.0,105440.0,0.55827212]
[1747035111667,0.51067871,105450.0,105440.0,0.57723907]
[1747035111912,0.41582441,105450.0,105440.0,0.57723907]
[1747035112324,0.42530685,105450.0,105440.0,0.57723907]
[1747035112550,0.42530676,105450.0,105440.0,0.57723907]
[1747035112775,0.43478929,105450.0,105440.0,0.57723907]
[1747035113027,0.40982441,105450.0,105440.0,0.57723907]
[1747035113239,0.40982441,105450.0,105440.0,0.97428832]
[1747035113458,0.40882441,105450.0,105440.0,0.97428832]
[1747035113673,0.39882441,105450.0,105440.0,0.61243907]
[1747035113859,0.3971109,105450.0,105440.0,0.61043907]
[1747035114114,0.3971109,105450.0,105440.0,0.60843907]
[1747035114335,0.3981109,105450.0,105440.0,1.05807819]
[1747035114972,0.3981109,105450.0,105440.0,1.15393249]
[1747035114973,0.0045909,105450.0,105440.0,1.15393249]
[1747035115628,0.0045909,105450.0,105440.0,0.71429337]
[1747035115843,0.0045909,105450.0,105440.0,1.07814262]
[1747035116059,0.0045909,105450.0,105440.0,0.71429337]
[1747035116271,0.0045909,105450.0,105440.0,1.07814262]
[1747035116490,0.00947966,105480.0,105470.0,0.56755121]
[1747035116673,0.22752948,105480.0,105470.0,0.95789893]
[1747035116968,0.2275302,105480.0,105470.0,0.95789893]
[1747035117185,0.29494408,105480.0,105470.0,0.7493091]
[1747035117614,0.32534408,105480.0,105470.0,0.7493091]
[1747035117822,0.32634408,105480.0,105470.0,0.7493091]
[1747035118062,0.32734408,105480.0,105470.0,0.7493091]
[1747035119587,0.32734408,105480.0,105470.0,0.34]
[1747035120241,0.31224408,105480.0,105470.0,0.34]
[1747035120685,0.11681479,105480.0,105470.0,0.54858983]
[1747035120897,0.11681479,105480.0,105470.0,0.56755156]
[1747035121125,0.002,105480.0,105470.0,0.93140081]
[1747035121357,0.002,105480.0,105470.0,0.96310081]
[1747035121583,0.001,105490.0,105480.0,1.36090808]
[1747035123352,0.001,105490.0,105480.0,1.00005883]
[1747035123563,0.001,105490.0,105480.0,1.36390808]
[1747035123777,0.001,105490.0,105480.0,1.68025883]
[1747035124000,0.001,105490.0,105480.0,2.04410808]
[1747035124220,0.001,105490.0,105480.0,1.00005883]
[1747035124467,0.001,105490.0,105480.0,1.36390808]
[1747035124697,0.001,105490.0,105480.0,1.36590808]
[1747035125584,0.001,105490.0,105480.0,1.36580421]
[1747035125801,0.40952,105500.0,105490.0,0.92187831]
[1747035125802,0.40452,105500.0,105490.0,0.92187831]
[1747035126021,0.40452,105500.0,105490.0,0.55802906]
[1747035126022,0.41399795,105500.0,105490.0,0.55802906]
[1747035127371,0.41399786,105500.0,105490.0,0.56202906]
[1747035127603,0.41399786,105500.0,105490.0,0.56102906]
[1747035127823,0.41399795,105500.0,105490.0,0.56202906]
[1747035128049,0.2210765,105530.0,105500.0,0.19905149]
[1747035128240,0.13390636,105520.0,105510.0,0.56746477]
[1747035128505,0.13390708,105520.0,105510.0,0.56746477]
[1747035128730,0.10547692,105520.0,105510.0,0.97477387]
[1747035129003,0.00014656,105520.0,105510.0,0.97477387]
[1747035129253,0.01909895,105520.0,105510.0,0.97477387]
[1747035129491,0.00014656,105520.0,105510.0,1.33862312]
[1747035129698,0.00014656,105520.0,105510.0,1.00597387]
[1747035129928,0.00014656,105520.0,105510.0,0.99077387]
[1747035130160,0.00014656,105520.0,105510.0,0.99040075]
[1747035130388,0.00014656,105520.0,105510.0,1.36935]
[1747035130616,4e-05,105530.0,105520.0,0.96512959]
[1747035130875,0.00052871,105530.0,105520.0,0.98142959]
[1747035131085,0.00052871,105530.0,105520.0,1.34527884]
[1747035131346,0.00052871,105530.0,105520.0,0.98142959]
[1747035131565,0.01000388,105530.0,105520.0,0.98142959]
[1747035131797,0.01000388,105530.0,105520.0,0.96512959]
[1747035132049,0.01947931,105530.0,105520.0,0.97460601]
[1747035132267,0.01000388,105530.0,105520.0,0.97460601]
[1747035132485,0.20899887,105530.0,105520.0,0.74716254]
[1747035132720,0.20899958,105530.0,105520.0,0.74716254]
[1747035132946,0.11533379,105530.0,105520.0,1.33845562]
[1747035133175,0.01100388,105530.0,105520.0,0.97460637]
[1747035133404,0.01447931,105530.0,105520.0,1.33845562]
[1747035133637,0.001,105530.0,105520.0,1.33845562]
[1747035134082,0.61464811,105580.0,105560.0,0.00947265]
[1747035134083,0.0158144,105580.0,105560.0,0.00947265]
[1747035134344,0.0158144,105580.0,105570.0,0.55786381]
[1747035134345,0.01596095,105580.0,105570.0,0.55786381]
[1747035134662,0.02089687,105580.0,105570.0,0.92171306]
[1747035134836,0.02089687,105580.0,105570.0,0.55786381]
[1747035135311,0.01896095,105580.0,105570.0,0.92171306]
[1747035135532,0.01896095,105580.0,105570.0,3.16171306]
[1747035135754,0.01,105590.0,105580.0,0.95379245]
[1747035135993,0.009,105590.0,105580.0,1.04964675]
[1747035136201,0.009,105590.0,105580.0,0.6857975]
[1747035139009,0.04,105600.0,105590.0,1.03282611]
[1747035139224,0.04,105600.0,105590.0,1.04882611]
[1747035139454,0.04,105600.0,105590.0,0.92167181]
[1747035139681,0.22939393,105600.0,105590.0,0.348]
[1747035139903,0.25236952,105600.0,105590.0,0.008]
[1747035140122,0.34822418,105600.0,105590.0,0.008]
[1747035141081,0.25583831,105600.0,105590.0,0.00489396]
[1747035141302,0.25583867,105600.0,105590.0,0.00489396]
[1747035141519,0.25583939,105600.0,105590.0,0.003]
[1747035141967,0.24636916,105600.0,105590.0,0.20377618]
[1747035142195,0.03803702,105600.0,105590.0,0.56371646]
[1747035142445,0.03803702,105600.0,105590.0,1.02799607]
[1747035142658,0.04030133,105600.0,105590.0,1.06059607]
[1747035142910,0.03930133,105600.0,105590.0,1.06059607]
[1747035143143,0.034,105600.0,105590.0,1.06059607]
[1747035143359,0.034,105600.0,105590.0,1.06159607]
[1747035143611,0.034,105600.0,105590.0,1.06059607]
[1747035144103,0.034,105600.0,105590.0,6.11159607]
[1747035144557,0.034,105600.0,105590.0,4.10714682]
[1747035144816,0.034,105600.0,105590.0,4.09114682]
[1747035145032,0.034,105600.0,105590.0,3.27714682]
[1747035145247,0.034,105600.0,105590.0,3.28661723]
[1747035145942,0.034,105600.0,105590.0,3.65046648]
[1747035146438,0.40928,105640.0,105630.0,0.21774007]
[1747035146655,0.42821087,105640.0,105630.0,0.54827369]
[1747035146882,0.4286994,105640.0,105630.0,0.55774007]
[1747035147139,0.43816497,105640.0,105630.0,0.55774024]
[1747035147383,0.40976862,105640.0,105630.0,0.56720662]
[1747035147619,0.40976862,105640.0,105630.0,0.93105587]
[1747035147847,0.40976862,105640.0,105630.0,0.56720662]
[1747035148077,0.61802261,105640.0,105630.0,0.34]
[1747035148305,0.61802261,105640.0,105630.0,0.34946691]
[1747035148539,0.64952288,105640.0,105630.0,0.34]
[1747035149001,0.65152288,105640.0,105630.0,0.34]
[1747035149638,0.74737718,105640.0,105630.0,0.34]
[1747035150734,0.71587718,105640.0,105630.0,0.34]
[1747035150955,0.42123401,105640.0,105630.0,0.55774007]
[1747035151198,0.41176862,105640.0,105630.0,0.55774007]
[1747035151404,0.44016551,105640.0,105630.0,0.55774007]
[1747035151614,0.43069967,105640.0,105630.0,0.55774007]
[1747035151832,0.44016542,105640.0,105630.0,0.55774007]
[1747035152059,0.41176862,105640.0,105630.0,7.16154362]
[1747035152480,0.41176862,105640.0,105630.0,6.79769437]
[1747035152693,0.41176862,105640.0,105630.0,5.12529437]
[1747035152916,0.40976862,105640.0,105630.0,5.48914362]
[1747035153391,0.41076862,105640.0,105630.0,5.48914362]
[1747035153872,0.40476862,105640.0,105630.0,5.14119437]
[1747035154095,0.41423401,105640.0,105630.0,1.89499437]
[1747035154307,0.40476862,105640.0,105630.0,1.89499437]
[1747035154520,0.00148862,105640.0,105630.0,2.25884362]
[1747035154726,0.01898916,105650.0,105640.0,0.97013085]
[1747035154947,0.01913565,105650.0,105640.0,6.02013085]
[1747035155163,0.01913556,105650.0,105640.0,6.02013085]
[1747035155376,0.02860041,105650.0,105640.0,2.69263085]
[1747035155805,0.01913556,105650.0,105640.0,2.69263085]
[1747035156031,0.00020649,105650.0,105640.0,2.69363085]
[1747035156483,0.00020649,105650.0,105640.0,3.0574801]
[1747035157141,0.00020649,105650.0,105640.0,2.69363085]
[1747035157348,0.00020649,105650.0,105640.0,2.78948515]
[1747035157843,0.00020649,105650.0,105640.0,3.1533344]
[1747035158275,0.00020649,105650.0,105640.0,3.1543344]
[1747035158482,0.00020649,105650.0,105640.0,1.06798515]
[1747035158699,0.20844058,105650.0,105640.0,0.85861138]
[1747035158925,0.02860068,105650.0,105640.0,5.17383085]
[1747035159141,0.00967098,105650.0,105640.0,4.02283085]
[1747035159342,0.0286005,105650.0,105640.0,4.02283085]
[1747035159554,0.01913565,105650.0,105640.0,4.02283085]
[1747035159977,0.0286005,105650.0,105640.0,4.02283085]
[1747035160207,0.04753047,105650.0,105640.0,4.71249651]
[1747035160413,0.01913565,105650.0,105640.0,4.71249651]
[1747035161081,0.00020649,105650.0,105640.0,4.71249651]
[1747035161294,0.01913556,105650.0,105640.0,4.71249651]
[1747035161546,0.0283941,105650.0,105640.0,4.71249651]
[1747035161782,0.02839383,105650.0,105640.0,4.71249651]
[1747035161996,4.37776441,105660.0,105650.0,0.55769885]
[1747035162212,4.58435483,105660.0,105650.0,0.53876942]
[1747035162439,4.55932845,105660.0,105650.0,0.54519212]
[1747035162677,4.54348324,105660.0,105650.0,0.54519212]
[1747035162908,4.5147325,105660.0,105650.0,0.34642279]
[1747035163140,4.6105868,105660.0,105650.0,0.00642279]
[1747035163359,4.58283371,105660.0,105650.0,0.00642279]
[1747035163578,4.58283371,105660.0,105650.0,0.34642279]
[1747035163579,4.58383371,105660.0,105650.0,0.34642279]
[1747035164022,4.47910861,105660.0,105650.0,0.34642279]
[1747035164252,4.4601806,105660.0,105650.0,0.34642279]
[1747035164701,4.5560349,105660.0,105650.0,0.34642279]
[1747035164929,0.23166933,105650.0,105640.0,1.09261138]
[1747035165157,0.01893643,105610.0,105600.0,0.1988612]
[1747035165372,0.00946808,105610.0,105600.0,0.21969301]
[1747035165599,0.02555351,105610.0,105600.0,0.21828812]
[1747035165828,0.00661708,105610.0,105600.0,0.21828812]
[1747035166015,0.01608507,105610.0,105600.0,0.20881942]
[1747035166285,0.24523005,105610.0,105600.0,0.00048862]
[1747035166547,0.05585405,105610.0,105600.0,0.21829054]
[1747035166780,0.05585351,105610.0,105600.0,0.21829054]
[1747035167001,0.04638525,105610.0,105600.0,0.21829054]
[1747035167228,0.03128516,105610.0,105600.0,0.22429054]
[1747035167487,0.26446684,105610.0,105600.0,0.34648862]
[1747035167700,0.06562213,105610.0,105600.0,0.56429054]
[1747035167923,0.01608507,105610.0,105600.0,0.56429054]
[1747035168142,0.0350215,105610.0,105600.0,0.56429054]
[1747035168368,0.23386612,105610.0,105600.0,0.55482148]
[1747035168595,0.25923492,105610.0,105600.0,0.57375987]
[1747035168810,0.06039012,105610.0,105600.0,0.58322893]
[1747035169302,0.0449215,105610.0,105600.0,0.58322893]
[1747035169520,0.06385874,105610.0,105600.0,0.58322893]
[1747035169766,0.04492141,105610.0,105600.0,0.58322893]
[1747035169981,0.01008516,105610.0,105600.0,0.58322893]
[1747035170455,0.01955333,105610.0,105600.0,0.58322893]
[1747035170673,0.0384903,105610.0,105600.0,0.58322893]
[1747035170886,0.04472168,105610.0,105600.0,0.58322893]
[1747035171094,0.03525333,105610.0,105600.0,0.58322893]
[1747035171320,0.04472168,105610.0,105600.0,0.23674031]
[1747035171547,0.03525333,105610.0,105600.0,0.23674031]
[1747035171979,0.04472159,105610.0,105600.0,0.23674031]
[1747035172193,0.05357295,105610.0,105600.0,0.23674031]
[1747035172420,0.06997295,105610.0,105600.0,0.23674031]
[1747035172640,0.07944157,105610.0,105600.0,0.23674031]
[1747035172948,0.06997295,105610.0,105600.0,0.23674031]
[1747035173044,0.02586799,105610.0,105600.0,0.23674031]
[1747035173270,0.61701459,105620.0,105610.0,0.21778132]
[1747035173271,0.42472,105620.0,105610.0,0.21778132]
[1747035173495,0.53950875,105620.0,105610.0,0.21778132]
[1747035173719,0.57424392,105620.0,105610.0,0.21778132]
[1747035173968,0.57424383,105620.0,105610.0,0.55778132]
[1747035174217,0.45292208,105620.0,105610.0,0.55778132]
[1747035174449,0.74456772,105620.0,105610.0,0.34]
[1747035174696,0.01894091,105590.0,105580.0,0.6802]
[1747035174951,0.05114037,105590.0,105580.0,0.89818969]
[1747035175175,0.05113983,105590.0,105580.0,1.23818969]
[1747035175391,0.05113983,105590.0,105580.0,0.89818969]
[1747035175611,0.06061006,105590.0,105580.0,1.23818969]
[1747035176084,0.3364069,105590.0,105580.0,0.41404649]
[1747035176344,0.3364069,105590.0,105580.0,0.75404649]
[1747035176575,0.55579449,105590.0,105580.0,0.97188996]
[1747035177026,0.5652649,105590.0,105580.0,0.98136082]
[1747035177027,0.4028,105590.0,105580.0,1.34521007]
[1747035177510,0.4028,105590.0,105580.0,3.16696437]
[1747035177733,0.02556817,105610.0,105600.0,0.21780192]
[1747035177959,0.02840523,105610.0,105600.0,0.21780192]
[1747035178198,0.02840514,105610.0,105600.0,0.21780192]
[1747035178420,0.01893652,105610.0,105600.0,0.21780192]
[1747035178640,0.02840514,105610.0,105600.0,0.21780192]
[1747035178867,0.03787385,105610.0,105600.0,0.21780192]
[1747035179079,0.06997385,105610.0,105600.0,0.2178021]
[1747035179308,0.02606817,105610.0,105600.0,0.22727116]
[1747035179564,0.02493643,105610.0,105600.0,0.22727116]
[1747035179769,0.05034211,105610.0,105600.0,0.22727116]
[1747035179981,0.04834211,105610.0,105600.0,0.22727116]
[1747035180198,0.03987394,105610.0,105600.0,0.22727116]
[1747035180416,0.05537394,105610.0,105600.0,0.22727116]
[1747035180660,0.19886317,105600.0,105590.0,0.34]
[1747035180902,0.2302821,105590.0,105580.0,1.09424649]
[1747035181114,0.23975251,105590.0,105580.0,0.20851892]
[1747035183329,0.74496734,105600.0,105590.0,0.34]
[1747035183540,1.10881659,105600.0,105590.0,0.4139]
[1747035183989,0.74596734,105600.0,105590.0,0.4139]
[1747035185985,0.74896734,105600.0,105590.0,0.4139]
[1747035186202,0.75196734,105600.0,105590.0,0.4139]
[1747035187076,0.23058228,105590.0,105580.0,0.75404649]
[1747035187322,0.32643658,105590.0,105580.0,0.75404649]
[1747035187555,0.69028583,105590.0,105580.0,0.34014649]
[1747035187774,0.32643658,105590.0,105580.0,0.34014649]
[1747035188236,0.69028583,105590.0,105580.0,0.34014649]
[1747035188457,0.32743658,105590.0,105580.0,0.34014649]
[1747035188697,0.32843658,105590.0,105580.0,0.34014649]
[1747035189856,0.32243658,105590.0,105580.0,0.34014649]
[1747035190732,0.32243658,105590.0,105580.0,0.00014649]
[1747035191194,0.68628583,105590.0,105580.0,0.00014649]
[1747035191433,0.73628583,105590.0,105580.0,0.00014649]
[1747035191665,0.37243658,105590.0,105580.0,0.00014649]
[1747035191885,0.73628583,105590.0,105580.0,0.00014649]
[1747035192152,0.84114013,105590.0,105580.0,0.00014649]
[1747035192400,0.79728583,105590.0,105580.0,0.00014649]
[1747035192627,0.75128583,105590.0,105580.0,0.00014649]
[1747035192866,0.79828583,105590.0,105580.0,0.00014649]
[1747035193141,0.81589889,105590.0,105580.0,0.00014649]
[1747035193376,0.20843156,105550.0,105540.0,0.77774925]
[1747035193603,0.20843156,105550.0,105540.0,0.75404655]
[1747035193604,0.33598586,105550.0,105540.0,0.75404655]
[1747035194513,1.10883511,105550.0,105540.0,0.41404655]
[1747035194740,1.10883511,105550.0,105540.0,0.00014655]
[1747035195012,0.74498586,105550.0,105540.0,0.00114655]
[1747035195231,1.15883511,105550.0,105540.0,0.00114655]
[1747035195454,1.21283511,105550.0,105540.0,0.00114655]
[1747035195669,0.80298586,105550.0,105540.0,0.00114655]
[1747035195926,0.80959803,105550.0,105540.0,0.00114655]
[1747035197995,1.18344728,105550.0,105540.0,0.00114655]
[1747035198226,1.51344728,105550.0,105540.0,0.00114655]
[1747035198449,0.2385104,105510.0,105500.0,0.4139]
[1747035198674,0.3043647,105510.0,105500.0,0.94396216]
[1747035198912,0.3043647,105510.0,105500.0,0.75438871]
[1747035199137,0.3043647,105510.0,105500.0,1.32676866]
[1747035199138,0.31384175,105510.0,105500.0,1.32676866]
[1747035199356,0.31384175,105510.0,105500.0,2.9723979]
[1747035199579,0.3043647,105510.0,105500.0,2.75438871]
[1747035200559,0.12428689,105510.0,105500.0,3.33624661]
[1747035200772,0.32332015,105510.0,105500.0,3.32676848]
[1747035200980,0.31384283,105510.0,105500.0,3.12023796]
[1747035201189,0.30436524,105510.0,105500.0,2.75638871]
[1747035201402,0.30436524,105510.0,105500.0,2.75838871]
[1747035201617,0.33696524,105510.0,105500.0,2.34448871]
[1747035203400,0.30436524,105510.0,105500.0,2.54354074]
[1747035203623,0.29836524,105510.0,105500.0,2.34448871]
[1747035204529,0.32986524,105510.0,105500.0,2.34448871]
[1747035205457,0.32986524,105510.0,105500.0,2.00448871]
[1747035210157,0.32970381,105510.0,105500.0,2.00448871]
[1747035210380,0.73898381,105510.0,105500.0,2.00448871]
[1747035211473,0.73298381,105510.0,105500.0,2.00448871]
[1747035211706,1.20683306,105510.0,105500.0,2.00448871]
[1747035211928,1.43683306,105510.0,105500.0,2.00448871]
[1747035212156,1.43683306,105510.0,105500.0,1.97228871]
[1747035212622,1.73683306,105510.0,105500.0,1.97028871]
[1747035212847,1.46889455,105510.0,105500.0,1.97028871]
[1747035213105,1.46471864,105510.0,105500.0,1.96828871]
[1747035213323,1.46971864,105510.0,105500.0,1.96828871]
[1747035213738,1.46471864,105510.0,105500.0,1.96828871]
[1747035213954,1.47771864,105510.0,105500.0,1.96828871]
[1747035214175,1.47471864,105510.0,105500.0,1.96828871]
[1747035214389,1.11086939,105510.0,105500.0,1.96828871]
[1747035214589,1.11086939,105510.0,105500.0,1.96928871]
[1747035214590,1.21586939,105510.0,105500.0,1.96928871]
[1747035215034,1.22586939,105510.0,105500.0,1.96928871]
[1747035215480,0.77586939,105510.0,105500.0,1.96928871]
[1747035215812,0.81132854,105510.0,105500.0,1.96928871]
[1747035216689,0.83247035,105510.0,105500.0,1.96928871]
[1747035217133,0.78247035,105510.0,105500.0,1.96928871]
[1747035217573,0.7364295,105510.0,105500.0,1.96928871]
[1747035217800,0.72982854,105510.0,105500.0,1.96928871]
[1747035218636,0.74436939,105510.0,105500.0,1.96928871]
[1747035218919,0.32708939,105510.0,105500.0,1.96828871]
[1747035219112,0.71494854,105510.0,105500.0,2.57326857]
[1747035219426,0.71047086,105510.0,105500.0,3.11863796]
[1747035219644,0.72501171,105510.0,105500.0,3.11863796]
[1747035220108,0.69799309,105510.0,105500.0,3.11863796]
[1747035220609,0.69799309,105510.0,105500.0,3.12063796]
[1747035220843,0.71253394,105510.0,105500.0,3.12063796]
[1747035221909,0.71253394,105510.0,105500.0,2.74058871]
[1747035222154,0.71253394,105510.0,105500.0,2.36018871]
[1747035222369,0.74423394,105510.0,105500.0,1.94628871]
[1747035222802,0.71253394,105510.0,105500.0,1.94628871]
[1747035223225,0.71916483,105510.0,105500.0,1.94628871]
[1747035223472,0.74856483,105510.0,105500.0,1.94428871]
[1747035223692,0.75356483,105510.0,105500.0,1.94428871]
[1747035224543,0.75356483,105510.0,105500.0,1.92028871]
[1747035225715,1.56741408,105510.0,105500.0,1.92028871]
[1747035225971,1.20356483,105510.0,105500.0,1.92028871]
[1747035226446,1.23004654,105510.0,105500.0,1.92028871]
[1747035226694,0.84004654,105510.0,105500.0,1.92028871]
[1747035226933,0.81356483,105510.0,105500.0,1.92028871]
[1747035227376,0.8400611,105510.0,105500.0,1.92028871]
[1747035227874,0.8300611,105510.0,105500.0,1.92028871]
[1747035228120,0.80356483,105510.0,105500.0,1.92028871]
[1747035228322,0.83007779,105510.0,105500.0,1.92028871]
[1747035228641,0.83007779,105510.0,105500.0,1.89628871]
[1747035229112,0.83007779,105510.0,105500.0,1.89528867]
[1747035229543,0.84007779,105510.0,105500.0,1.89528867]
[1747035230623,0.032,105480.0,105440.0,0.031]
[1747035230811,0.20424017,105430.0,105420.0,0.031]
[1747035231262,0.20424017,105430.0,105420.0,0.371]
[1747035231480,0.30009447,105430.0,105420.0,0.031]
[1747035232143,0.30009447,105430.0,105420.0,0.39484925]
[1747035232517,0.30009447,105430.0,105420.0,0.031]
[1747035232741,0.30009447,105430.0,105420.0,0.39467381]
[1747035232883,0.30009447,105430.0,105420.0,0.6033624]
[1747035233081,0.04299465,105430.0,105420.0,0.95584763]
[1747035233329,0.22420964,105430.0,105420.0,0.9408769]
[1747035233539,0.31057934,105430.0,105420.0,0.74167381]
[1747035233749,0.31057934,105430.0,105420.0,0.9503624]
[1747035233953,0.13036462,105430.0,105420.0,0.9503624]
[1747035234159,0.30457934,105430.0,105420.0,0.71084925]
[1747035234329,0.30457934,105430.0,105420.0,0.347]
[1747035234541,0.20872504,105430.0,105420.0,0.72714925]
[1747035235165,0.38036921,105430.0,105420.0,0.007]
[1747035235355,0.30457934,105430.0,105420.0,0.007]
[1747035235963,0.30457934,105430.0,105420.0,0.004]
[1747035236173,0.199203,105420.0,105410.0,0.34014656]
[1747035236398,0.2950573,105420.0,105410.0,0.34014656]
[1747035236801,0.2950573,105420.0,105410.0,0.70399581]
[1747035236979,0.2950573,105420.0,105410.0,0.34014656]
[1747035237767,0.2950573,105420.0,105410.0,0.00014656]
[1747035237977,0.2950573,105420.0,105410.0,0.00314656]
[1747035238185,0.33344116,105420.0,105410.0,0.00314656]
[1747035238390,0.3275573,105420.0,105410.0,0.00314656]
[1747035238833,0.3275573,105420.0,105410.0,0.00205398]
[1747035238834,0.6668573,105420.0,105410.0,0.00205398]
[1747035239038,1.33070655,105420.0,105410.0,0.00205398]
[1747035239234,1.0168573,105420.0,105400.0,0.85793927]
[1747035239440,0.37677619,105410.0,105400.0,0.85842813]
[1747035239936,0.32677619,105410.0,105400.0,0.85842813]
[1747035240351,0.33677619,105410.0,105400.0,0.85842813]
[1747035240568,0.38677619,105410.0,105400.0,0.85842813]
[1747035240779,0.75262544,105410.0,105400.0,0.85842813]
[1747035240996,1.15841531,105410.0,105400.0,0.85842813]
[1747035241248,1.45841531,105410.0,105400.0,0.85842813]
[1747035241906,1.46500303,105410.0,105400.0,0.85842813]
[1747035242120,1.51685733,105410.0,105400.0,0.85842813]
[1747035242329,1.51685733,105410.0,105400.0,0.81950151]
[1747035242330,1.21485733,105410.0,105400.0,0.81950151]
[1747035242564,1.23924195,105410.0,105400.0,0.80270016]
[1747035242781,1.51985733,105410.0,105400.0,0.80370016]
[1747035243016,1.41900303,105410.0,105400.0,0.80270016]
[1747035243230,1.42600303,105410.0,105400.0,0.77150016]
[1747035243444,1.35021316,105410.0,105400.0,0.77150016]
[1747035243862,1.42600303,105410.0,105400.0,0.77150016]
[1747035244075,1.52185733,105410.0,105400.0,0.77150016]
[1747035244295,1.47045208,105410.0,105400.0,0.77150016]
[1747035244510,1.47045208,105410.0,105400.0,0.70880016]
[1747035244511,1.49015733,105410.0,105400.0,0.70880016]
[1747035244718,0.20880725,105360.0,105350.0,0.01556]
[1747035244935,0.20880725,105360.0,105350.0,6e-05]
[1747035244936,0.76438155,105360.0,105350.0,6e-05]
[1747035245150,1.21803485,105360.0,105350.0,6e-05]
[1747035245360,0.20884689,105340.0,105330.0,0.01076]
[1747035245539,0.30470119,105340.0,105330.0,0.02626]
[1747035245802,0.2857157,105340.0,105320.0,0.0158144]
[1747035246017,0.19937321,105330.0,105320.0,0.0324144]
[1747035246286,0.2229931,105330.0,105320.0,0.02709774]
[1747035246499,0.2229931,105330.0,105320.0,0.01049774]
[1747035246500,0.19937321,105330.0,105320.0,0.01049774]
[1747035246921,0.32804634,105330.0,105320.0,0.01049774]
[1747035247137,0.74243096,105330.0,105320.0,0.01049774]
[1747035247596,0.75343096,105330.0,105320.0,0.01249774]
[1747035247993,0.20890639,105310.0,105300.0,0.00955]
[1747035248224,0.20890639,105310.0,105300.0,0.00964258]
[1747035248225,0.30476069,105310.0,105300.0,0.00964258]
[1747035248646,0.70407122,105310.0,105300.0,0.00964258]
[1747035248851,0.71407122,105310.0,105300.0,0.00964258]
[1747035249701,0.71807122,105310.0,105300.0,0.00964258]
[1747035249908,0.81492552,105310.0,105300.0,0.00964258]
[1747035250133,0.75492552,105310.0,105300.0,0.00964258]
[1747035250341,1.05492552,105310.0,105300.0,0.00964258]
[1747035250553,1.41877477,105310.0,105300.0,1e-08]
[1747035250764,1.05492552,105310.0,105300.0,1e-08]
[1747035250999,0.95907122,105310.0,105300.0,1e-08]
[1747035251229,0.70907122,105310.0,105300.0,1e-08]
[1747035251476,0.71907122,105310.0,105300.0,1e-08]
[1747035251699,0.66907122,105310.0,105300.0,1e-08]
[1747035251935,0.36976069,105310.0,105300.0,1e-08]
[1747035252164,0.30976069,105310.0,105300.0,0.03160001]
[1747035253063,0.30976069,105310.0,105300.0,0.40490376]
[1747035253537,0.30976069,105310.0,105300.0,0.04105451]
[1747035253763,0.30976069,105310.0,105300.0,0.39544926]
[1747035254068,0.30976069,105310.0,105300.0,0.03160001]